bitfinex/quotes_ETHUSD_20250511
["timestamp","ask_amount","ask_price","bid_price","bid_amount"]
[1746994110617,4.00304231,2498.1,2497.4,0.7852]
[1746994110825,4.00385664,2497.6,2497.2,0.7852]
[1746994111136,2.962,2498.1,2497.2,0.7852]
[1746994111338,4.00404155,2497.5,2497.2,0.7852]
[1746994111537,4.00432467,2497.3,2497.2,0.7852]
[1746994113537,4.00416433,2497.4,2496.6,0.7852]
[1746994113836,4.00457375,2497.2,2496.6,0.7852]
[1746994114030,4.00457375,2497.2,2496.7,0.87852]
[1746994114407,4.00398252,2497.6,2496.7,0.87852]
[1746994114933,4.00462566,2497.2,2496.7,0.87852]
[1746994115107,4.00471961,2497.1,2496.7,0.87852]
[1746994115303,4.00384368,2497.6,2496.7,0.87852]
[1746994115654,4.00384368,2497.6,2496.6,0.7852]
[1746994115655,4.004004,2497.5,2496.6,0.7852]
[1746994115813,4.00524519,2496.8,2496.6,0.7852]
[1746994116352,4.00519806,2496.8,2496.6,0.7852]
[1746994116857,4.00528697,2496.7,2496.6,0.7852]
[1746994117157,4.00520634,2496.8,2496.6,0.7852]
[1746994119958,4.0049791,2496.9,2496.6,0.7852]
[1746994120358,4.00512684,2496.8,2496.6,0.7852]
[1746994120659,4.00528516,2496.8,2496.6,0.7852]
[1746994120810,4.00499338,2496.9,2496.2,0.7745]
[1746994121008,4.00584485,2496.4,2496.2,0.7745]
[1746994121834,4.00584245,2496.4,2496.2,0.7745]
[1746994122617,4.00500561,2496.9,2496.3,36.5942537]
[1746994122814,4.00512266,2496.9,2496.3,0.0775817]
[1746994124057,4.00514889,2496.8,2496.3,0.0775817]
[1746994124266,1.96218003,2497.1,2496.3,0.0775817]
[1746994124267,0.8074,2497.5,2496.9,8.0]
[1746994124417,4.00461107,2497.2,2496.4,0.7745]
[1746994124618,11.83604342,2497.6,2497.0,0.7745]
[1746994124619,1.96218003,2497.6,2497.0,0.7745]
[1746994124819,4.00378862,2497.7,2497.1,0.04004146]
[1746994125164,4.00312133,2498.1,2497.4,0.7925]
[1746994125319,4.0032495,2498.0,2497.5,0.87925]
[1746994125660,0.771,2498.6,2497.7,0.8331]
[1746994125842,4.00234636,2498.6,2498.0,0.8331]
[1746994126050,4.00245044,2498.5,2498.1,0.04002561]
[1746994126425,4.00245044,2498.5,2498.1,0.04002562]
[1746994126840,4.00195624,2498.8,2498.5,4.00245]
[1746994127047,4.00208108,2498.7,2498.6,0.8331]
[1746994128460,1.96218003,2499.2,2498.6,0.8331]
[1746994128780,4.00128443,2499.2,2498.6,0.8331]
[1746994128990,4.00136777,2499.2,2498.6,0.8331]
[1746994129293,4.00136777,2499.2,2498.7,0.88331]
[1746994129794,4.05102573,2499.4,2498.9,0.7907]
[1746994129991,4.05102573,2499.4,2499.0,0.04001045]
[1746994130793,4.00117466,2499.3,2499.0,0.04001045]
[1746994131491,0.05,2499.4,2499.2,0.7907]
[1746994131663,0.05,2499.4,2499.3,32.35459836]
[1746994132000,0.05,2499.4,2499.3,32.314594]
[1746994132303,0.05,2499.4,2499.3,30.543219]
[1746994132477,0.05,2499.4,2499.3,26.647419]
[1746994132862,0.05,2499.4,2499.3,26.050321]
[1746994133063,0.05,2499.4,2499.3,18.591222]
[1746994133276,0.05,2499.4,2499.3,16.044422]
[1746994135406,0.05,2499.4,2499.3,15.802365]
[1746994135566,0.05,2499.4,2499.3,13.119215]
[1746994137515,0.05,2499.4,2499.3,11.88618]
[1746994138429,0.05,2499.4,2499.3,8.0]
[1746994138723,4.05096023,2499.4,2499.3,8.0]
[1746994138918,0.05,2499.4,2499.3,8.0]
[1746994140881,0.05,2499.4,2499.3,26.619342]
[1746994141128,0.05,2499.4,2499.3,23.796118]
[1746994141287,0.05,2499.4,2499.3,26.1757298]
[1746994141509,0.05,2499.4,2499.3,10.3796118]
[1746994141814,0.05,2499.4,2499.3,31.898793]
[1746994142012,0.05,2499.4,2499.3,28.727309]
[1746994142212,0.05,2499.4,2499.3,29.513809]
[1746994142448,0.05,2499.4,2499.3,26.241021]
[1746994142738,0.05,2499.4,2499.3,24.38433]
[1746994143041,0.05,2499.4,2499.3,26.822763]
[1746994143712,0.05,2499.4,2499.3,11.224933]
[1746994143902,0.05,2499.4,2499.3,22.082998]
[1746994144102,0.05,2499.4,2499.3,13.99634]
[1746994144701,0.05,2499.4,2499.3,12.794926]
[1746994145240,0.05,2499.4,2499.3,12.008426]
[1746994145422,0.05,2499.4,2499.3,8.0]
[1746994145624,0.05,2499.4,2499.3,37.670557]
[1746994145806,0.05,2499.4,2499.3,28.566655]
[1746994146012,0.05,2499.4,2499.3,8.0]
[1746994146999,4.05096023,2499.4,2499.3,8.0]
[1746994149147,0.8382,2499.4,2498.3,15.1857]
[1746994149305,4.0014605,2499.1,2498.4,8.0]
[1746994149506,4.0014605,2499.1,2498.5,2.31857]
[1746994149722,4.05105967,2499.4,2499.1,4.00146]
[1746994149928,4.00115529,2499.3,2498.6,0.7807]
[1746994150123,4.00115529,2499.3,2498.6,3.72371315]
[1746994150431,4.00171226,2499.0,2498.7,8.60422831]
[1746994150602,4.0016539,2499.0,2498.7,8.60422831]
[1746994151561,4.05105814,2499.4,2499.1,8.0]
[1746994151744,4.00120437,2499.3,2498.7,0.60422831]
[1746994151932,4.00120437,2499.3,2498.9,8.0]
[1746994152814,4.00120437,2499.3,2499.0,0.04001119]
[1746994153238,4.00120437,2499.3,2498.9,8.0]
[1746994153443,2.01218003,2499.4,2498.6,0.7807]
[1746994153640,2.01218003,2499.4,2498.3,14.405]
[1746994153641,4.00226949,2498.6,2498.3,18.1067]
[1746994153950,4.00201778,2498.8,2498.4,9.81067]
[1746994154155,4.00201778,2498.8,2498.4,1.81067]
[1746994154321,4.00201778,2498.8,2498.4,9.81067]
[1746994155464,2.01218003,2499.4,2498.4,9.81067]
[1746994155757,4.00138108,2499.2,2498.5,0.55]
[1746994155926,4.00138108,2499.2,2498.7,0.7738]
[1746994156113,4.00147644,2499.1,2498.7,0.7738]
[1746994156742,4.00147644,2499.1,2498.8,8.0]
[1746994157129,0.05,2499.4,2498.8,8.0]
[1746994157339,4.00136251,2499.2,2498.8,8.0]
[1746994157517,4.00136251,2499.2,2498.9,1.16718]
[1746994158970,4.00120243,2499.3,2498.9,1.16718]
[1746994159182,0.05,2499.4,2498.9,1.20719204]
[1746994159751,0.05,2499.4,2498.9,1.16718]
[1746994160139,0.05,2499.4,2499.0,0.8249]
[1746994162155,0.05,2499.4,2499.1,1.41490685]
[1746994162367,0.05,2499.4,2499.3,1.3749]
[1746994162536,0.05,2499.4,2499.3,56.60717728]
[1746994162734,0.05,2499.4,2499.3,56.56717751]
[1746994162984,0.05,2500.4,2499.6,0.55]
[1746994163281,0.05,2500.4,2499.5,0.8249]
[1746994163282,0.05,2500.4,2499.9,0.8249]
[1746994163453,0.05,2500.4,2500.1,8.0]
[1746994163780,0.05,2500.4,2500.3,8.0]
[1746994163952,0.05,2500.4,2500.3,52.50093754]
[1746994164266,0.05,2500.4,2500.3,20.642223]
[1746994165581,0.05,2500.4,2500.3,16.839655]
[1746994166840,4.0493601,2500.4,2500.3,10.898]
[1746994167040,4.0493601,2500.4,2499.4,0.8324]
[1746994167041,4.00067337,2499.6,2499.4,0.8324]
[1746994167238,4.0,2500.0,2499.1,3.7294]
[1746994167564,4.00093892,2499.5,2499.1,3.7294]
[1746994167756,4.00053199,2499.7,2499.2,8.0]
[1746994167938,0.7626,2499.8,2499.2,8.0]
[1746994168135,4.00112031,2499.3,2499.2,1.17294]
[1746994168339,0.7626,2499.2,2498.4,0.8324]
[1746994168748,4.00144051,2499.1,2498.4,0.8324]
[1746994169745,4.76393985,2499.2,2498.4,0.8324]
[1746994170283,4.00144754,2499.1,2498.4,0.8324]
[1746994170587,3.7039,2499.5,2498.5,0.59001415]
[1746994170751,4.00143214,2499.2,2498.5,0.55]
[1746994171081,4.00092707,2499.5,2499.3,8.0]
[1746994171255,4.00092707,2499.5,2499.0,8.0]
[1746994171457,4.00050574,2499.7,2499.2,8.0]
[1746994171782,4.00064692,2499.6,2499.1,1.8476]
[1746994172586,4.00082447,2499.5,2499.1,1.8476]
[1746994173683,4.00066931,2499.6,2499.1,1.8476]
[1746994173857,4.00066931,2499.6,2499.2,0.98476]
[1746994174262,0.8099,2499.8,2499.2,0.98476]
[1746994174481,4.00126063,2499.3,2499.1,8.0]
[1746994174763,4.0012804,2499.2,2499.1,8.0]
[1746994182666,4.00115424,2499.3,2498.6,8.0]
[1746994182871,2.77208003,2499.8,2499.4,8.0]
[1746994183076,4.00071242,2499.6,2499.0,0.8202]
[1746994183384,4.00071242,2499.6,2499.1,0.88202]
[1746994184072,4.00056716,2499.7,2499.1,0.88202]
[1746994184273,4.0006454,2499.6,2499.1,0.88202]
[1746994184909,4.0005194,2499.7,2499.1,0.88202]
[1746994185201,4.00064431,2499.6,2499.1,0.88202]
[1746994185406,4.00046788,2499.8,2499.1,0.88202]
[1746994185906,4.00056785,2499.7,2499.1,0.88202]
[1746994186102,2.73188003,2500.1,2499.3,8.0]
[1746994186322,0.8006,2500.3,2499.5,0.8115]
[1746994186540,4.00008672,2500.0,2499.6,0.04000014]
[1746994186674,4.80016882,2500.3,2499.6,0.04000014]
[1746994186875,0.05,2500.4,2499.6,0.55]
[1746994187076,3.99968495,2500.2,2499.6,0.55]
[1746994187277,4.00017301,2499.9,2499.5,8.8115]
[1746994187510,4.00017301,2499.9,2499.7,8.0]
[1746994187718,4.00017301,2499.9,2499.8,3.487177]
[1746994188081,4.00017301,2499.9,2499.6,1.27949]
[1746994188426,4.00017301,2499.9,2499.7,6.003229]
[1746994188583,3.99997198,2500.1,2499.5,8.0]
[1746994188584,4.00032002,2499.8,2499.5,8.0]
[1746994188779,4.00048005,2499.7,2499.5,8.0]
[1746994189207,4.00035562,2499.8,2499.5,9.99824]
[1746994191210,4.00050077,2499.7,2499.5,9.99824]
[1746994192028,4.00039414,2499.8,2499.5,9.99824]
[1746994192798,4.00096023,2499.4,2499.3,8.0]
[1746994193118,4.00096023,2499.4,2499.3,2.530641]
[1746994193290,4.00085761,2499.5,2499.4,8.0]
[1746994193495,4.00085761,2499.5,2499.3,8.0]
[1746994194234,4.0007118,2499.6,2499.3,8.0]
[1746994194538,4.0007118,2499.6,2499.4,1.17045]
[1746994194835,4.0007118,2499.6,2499.5,2.4235]
[1746994195335,4.00080016,2499.5,2499.4,1.17045]
[1746994195534,4.00080016,2499.5,2499.4,2.622996]
[1746994196036,4.00080016,2499.5,2499.3,8.0]
[1746994196333,4.00080016,2499.5,2499.4,2.5224]
[1746994197037,4.00139833,2499.2,2499.1,8.0]
[1746994197329,4.00119393,2499.3,2499.1,8.0]
[1746994197636,4.00119393,2499.3,2499.1,9.17157]
[1746994200563,4.0012804,2499.2,2499.1,8.0]
[1746994201968,4.00205052,2498.8,2498.6,0.8227]
[1746994202166,2.76408003,2499.5,2498.6,3.7157]
[1746994202378,4.00130146,2499.2,2498.7,8.04001533]
[1746994202554,4.00144845,2499.1,2498.8,1.17557153]
[1746994202880,4.00144845,2499.1,2498.2,14.395]
[1746994202881,4.00192092,2498.8,2497.7,0.8227]
[1746994203170,0.8019,2498.9,2497.7,0.8227]
[1746994203171,4.00270938,2498.4,2497.9,8.0]
[1746994203664,4.00236334,2498.6,2497.7,0.8227]
[1746994203866,4.00315618,2498.1,2497.9,2.893]
[1746994204098,4.00299521,2498.2,2498.1,8.0]
[1746994204367,4.00284752,2498.3,2497.9,3.26457]
[1746994204557,0.8019,2499.3,2498.2,0.8227]
[1746994204753,4.00116103,2499.3,2498.5,0.8227]
[1746994205063,0.8019,2499.5,2498.7,8.0]
[1746994205064,4.00147915,2499.1,2498.7,8.0]
[1746994205243,4.00134147,2499.2,2498.8,8.822134]
[1746994205461,4.00134147,2499.2,2498.8,1.0893]
[1746994205970,4.00098879,2499.4,2498.8,1.0893]
[1746994206547,4.00096023,2499.4,2498.8,1.0893]
[1746994206797,4.80276904,2499.5,2498.8,1.0893]
[1746994206963,4.00172059,2499.0,2498.8,1.0893]
[1746994207286,4.00172059,2499.0,2498.9,0.90893]
[1746994207942,4.00192092,2498.8,2498.7,8.0]
[1746994208141,4.00192092,2498.8,2498.6,8.0]
[1746994208742,4.00165099,2499.0,2498.6,8.0]
[1746994208990,0.8263,2499.8,2499.1,8.0]
[1746994209194,4.00095046,2499.5,2499.0,0.761]
[1746994209348,4.00067839,2499.6,2499.1,2.894]
[1746994209547,4.00090603,2499.5,2499.1,2.894]
[1746994209789,4.00051718,2499.7,2499.1,2.894]
[1746994210000,0.8263,2499.8,2499.1,2.894]
[1746994210164,4.00121184,2499.3,2499.1,2.894]
[1746994210344,4.00121184,2499.3,2499.2,0.3655]
[1746994210549,4.00097077,2499.4,2499.2,0.3655]
[1746994212270,4.00097077,2499.4,2499.1,2.894]
[1746994212271,4.00112031,2499.3,2499.1,2.894]
[1746994212448,4.0012804,2499.2,2499.1,2.894]
[1746994212652,4.00114677,2499.3,2499.1,2.894]
[1746994213095,4.00103298,2499.4,2499.1,2.894]
[1746994213299,4.00117676,2499.3,2499.1,2.894]
[1746994213615,4.82747676,2499.3,2499.1,2.894]
[1746994214117,4.00160064,2499.0,2498.9,8.0]
[1746994214267,0.8263,2499.3,2498.5,2.894]
[1746994214469,4.00218036,2498.7,2498.5,2.894]
[1746994214694,4.00218036,2498.7,2498.6,9.20151909]
[1746994215397,4.00218036,2498.7,2498.6,1.20151909]
[1746994215602,4.00218036,2498.7,2498.6,8.0]
[1746994215803,4.00218036,2498.7,2498.5,2.894]
[1746994215804,4.00224125,2498.6,2498.5,10.894]
[1746994215994,4.00299728,2498.2,2498.0,2.894]
[1746994216195,4.00299728,2498.2,2498.0,3.54962]
[1746994216393,4.00299728,2498.2,2498.1,8.0]
[1746994218006,4.00280771,2498.3,2498.2,2.117804]
[1746994218211,4.00280771,2498.3,2498.1,8.0]
[1746994220534,4.00288207,2498.2,2498.1,8.0]
[1746994220697,4.00288207,2498.2,2498.0,3.54962]
[1746994220898,0.7776,2498.8,2498.1,8.432182]
[1746994221098,4.0017068,2499.0,2498.2,0.04002345]
[1746994221300,4.0019975,2498.8,2498.3,8.8176]
[1746994223731,4.00187482,2498.9,2498.3,8.8176]
[1746994223927,4.00161017,2499.0,2498.4,1.22576]
[1746994224335,4.0017943,2498.9,2498.4,1.22576]
[1746994227714,0.8207,2499.4,2498.5,1.3535]
[1746994227923,0.8207,2499.7,2498.7,8.8035]
[1746994228262,4.00079518,2499.6,2498.8,4.10136104]
[1746994228447,0.8207,2499.7,2498.8,4.10136104]
[1746994228651,4.00110675,2499.4,2498.9,8.0]
[1746994229346,4.00163512,2499.0,2498.7,0.8035]
[1746994229554,4.00192092,2498.8,2498.6,8.0]
[1746994229738,4.00192092,2498.8,2498.6,9.579426]
[1746994230125,4.00192092,2498.8,2498.4,4.90426]
[1746994230126,0.7909,2499.2,2498.4,1.22576]
[1746994230340,4.00272185,2498.3,2498.2,2.89]
[1746994230551,4.00272185,2498.3,2498.2,10.89]
[1746994230737,4.00272185,2498.3,2498.2,2.89]
[1746994231525,4.00240144,2498.5,2498.2,2.89]
[1746994231749,4.00240144,2498.5,2498.2,3.05178731]
[1746994232063,4.00240144,2498.5,2498.3,0.16178731]
[1746994232262,4.00240144,2498.5,2498.2,2.89]
[1746994232466,4.00240144,2498.5,2498.4,0.16178731]
[1746994232684,4.00288207,2498.2,2498.1,2.07084103]
[1746994233437,4.00279409,2498.3,2498.1,2.07084103]
[1746994233738,4.00264756,2498.4,2498.1,2.27792513]
[1746994234239,4.0027757,2498.3,2498.1,2.27792513]
[1746994235062,0.7993,2499.0,2498.4,8.0]
[1746994235264,0.7993,2499.0,2498.2,0.8077]
[1746994235265,0.7993,2499.0,2498.2,8.8077]
[1746994235473,4.00222952,2498.7,2498.5,0.14516559]
[1746994235682,4.00224125,2498.6,2498.3,1.10856251]
[1746994235885,4.00224125,2498.6,2498.3,1.10326251]
[1746994237992,0.2,2498.4,2498.3,1.10326251]
[1746994238678,5.96277254,2499.7,2498.4,0.7917]
[1746994238986,4.00091464,2499.5,2498.6,8.7917]
[1746994239294,4.00048005,2499.7,2498.8,8.0]
[1746994239478,4.00108566,2499.4,2499.0,8.0]
[1746994239678,4.00086355,2499.5,2499.1,1.0891]
[1746994239985,4.00112139,2499.3,2499.1,1.0891]
[1746994240183,4.00032002,2499.8,2499.1,1.0891]
[1746994240392,4.000889,2499.5,2499.1,1.0891]
[1746994242960,4.00122534,2499.3,2499.1,1.0891]
[1746994243158,4.00080016,2499.5,2498.6,0.7917]
[1746994243392,4.00080016,2499.5,2498.4,2.89]
[1746994243393,4.76135531,2499.1,2498.4,2.89]
[1746994243704,4.00160064,2499.0,2498.5,8.0]
[1746994244409,4.00179836,2498.9,2498.5,8.0]
[1746994244575,4.00179836,2498.9,2498.6,1.089]
[1746994245815,4.00149856,2499.1,2498.6,1.089]
[1746994245956,1.96218003,2499.5,2498.7,0.7917]
[1746994246277,4.00075806,2499.6,2498.8,0.55]
[1746994246478,4.00075806,2499.6,2499.0,8.0]
[1746994246677,4.00075806,2499.6,2499.1,1.0885]
[1746994247614,4.00082006,2499.5,2499.1,1.0885]
[1746994249620,4.00072314,2499.6,2499.1,1.0885]
[1746994250530,4.00072314,2499.6,2499.2,0.11539121]
[1746994250816,4.00085872,2499.5,2499.2,0.11539121]
[1746994251013,4.00085872,2499.5,2499.2,1.32428033]
[1746994253615,4.00071132,2499.6,2499.2,1.32428033]
[1746994253819,4.00085728,2499.5,2499.2,1.32428033]
[1746994254119,4.76053794,2499.7,2499.2,0.11539121]
[1746994254120,4.0009677,2499.4,2499.2,0.11539121]
[1746994254337,4.00107567,2499.4,2499.2,0.11539121]
[1746994255032,4.00107567,2499.4,2499.3,0.11539121]
[1746994255420,4.00123988,2499.3,2499.0,8.0]
[1746994255617,4.00123988,2499.3,2499.1,0.11539121]
[1746994255933,4.76038405,2499.7,2499.3,12.001239]
[1746994255934,4.00081608,2499.5,2499.3,12.001239]
[1746994256139,4.00081608,2499.5,2499.1,1.50353033]
[1746994256451,4.00081608,2499.5,2499.2,0.11539121]
[1746994256655,4.00081608,2499.5,2499.0,8.0]
[1746994256861,4.00081608,2499.5,2499.3,0.11583871]
[1746994257062,4.00081608,2499.5,2499.0,8.0]
[1746994257370,4.00081608,2499.5,2499.4,0.11583871]
[1746994257551,0.7599,2499.7,2499.0,8.0]
[1746994257727,4.00043003,2499.8,2499.4,0.11583871]
[1746994257929,2.71888003,2500.0,2499.1,0.813]
[1746994258230,4.0006401,2499.6,2499.1,0.813]
[1746994258455,4.00080016,2499.5,2499.2,0.11583871]
[1746994260180,4.0003592,2499.8,2499.2,0.11583871]
[1746994260468,4.04939342,2500.4,2499.3,0.8036]
[1746994260674,4.04945447,2500.4,2499.5,1.3536]
[1746994260876,4.04945447,2500.4,2499.6,5.80499571]
[1746994261469,0.05,2500.4,2499.8,0.55]
[1746994261620,0.05,2500.4,2499.7,0.91685301]
[1746994261621,0.05,2500.4,2500.2,0.55]
[1746994261965,0.05,2500.4,2500.3,53.00396568]
[1746994262124,0.05,2501.4,2500.4,10.4799988]
[1746994262323,0.05,2501.4,2500.6,1.3536]
[1746994262834,0.05,2501.4,2500.7,0.10629355]
[1746994263052,0.05,2501.4,2500.9,0.8036]
[1746994263250,3.99804732,2501.3,2501.1,8.0]
[1746994263563,0.05,2501.4,2501.2,0.10629355]
[1746994264763,0.05,2501.4,2501.3,15.350814]
[1746994264967,0.05,2501.4,2501.3,14.493361]
[1746994265139,0.05,2501.4,2501.3,14.5944884]
[1746994265526,0.05,2501.4,2501.3,10.7391774]
[1746994265751,0.05,2501.4,2501.3,8.1011274]
[1746994265922,0.05,2501.4,2501.3,18.1646974]
[1746994266122,0.05,2501.4,2501.3,14.8302874]
[1746994266364,0.05,2501.4,2501.3,13.5088724]
[1746994266568,4.04776125,2501.4,2501.3,10.2739374]
[1746994266749,4.81446125,2501.4,2501.3,0.1011274]
[1746994266963,6.77664128,2501.4,2501.3,0.1011274]
[1746994267142,3.99898023,2500.7,2500.5,2.883]
[1746994267329,3.99898023,2500.7,2500.6,8.0]
[1746994267535,3.99876214,2500.8,2500.6,0.08590795]
[1746994267839,3.99888031,2500.7,2500.4,8.0]
[1746994268033,3.99888031,2500.7,2500.5,0.08590795]
[1746994268240,2.77888003,2501.4,2500.5,0.08590795]
[1746994268241,3.99878656,2500.8,2500.5,0.08590795]
[1746994268631,3.99891158,2500.7,2500.5,0.08590795]
[1746994268958,0.7667,2501.0,2500.0,0.03998949]
[1746994269273,3.99856051,2500.9,2500.1,0.08590795]
[1746994269633,3.99856051,2500.9,2499.9,8.0]
[1746994269949,3.99932179,2500.5,2500.0,1.25623795]
[1746994270158,0.7667,2501.0,2500.0,1.25623795]
[1746994270159,3.99907391,2500.6,2500.0,1.25623795]
[1746994270361,3.99856051,2500.9,2500.0,1.25623795]
[1746994270568,0.7667,2501.0,2500.0,0.08590795]
[1746994270569,3.99959814,2500.3,2500.0,0.08590795]
[1746994270765,3.99888031,2500.7,2500.0,0.08590795]
[1746994270941,4.76574023,2500.6,2500.0,0.08590795]
[1746994271339,3.99984,2500.1,2500.0,0.08590795]
[1746994271740,4.00011821,2500.0,2499.9,8.0]
[1746994271957,4.00011821,2500.0,2499.9,9.376]
[1746994272158,4.00016,2499.9,2499.8,2.883]
[1746994272569,4.00016,2499.9,2499.8,10.883]
[1746994272774,4.00016,2499.9,2499.8,2.883]
[1746994274653,4.00007488,2500.0,2499.8,2.883]
[1746994274986,4.00016,2499.9,2499.8,2.883]
[1746994277087,0.8166,2500.4,2499.8,4.9311608]
[1746994277398,3.99913308,2500.6,2499.9,0.04000079]
[1746994277582,3.99922523,2500.5,2499.9,0.04000079]
[1746994278778,3.99947163,2500.4,2499.9,0.04000079]
[1746994278973,4.00012213,2500.0,2499.8,2.883]
[1746994279182,4.00016,2499.9,2499.8,2.883]
[1746994280108,4.00002364,2500.0,2499.8,2.883]
[1746994280307,4.00016,2499.9,2499.8,2.883]
[1746994280493,4.00008562,2500.0,2499.8,3.35174959]
[1746994281517,3.9998865,2500.1,2499.8,3.35174959]
[1746994281518,1.96218003,2500.6,2499.9,0.04000012]
[1746994281701,3.99878659,2500.8,2500.1,8.0]
[1746994281879,3.99878659,2500.8,2500.2,4.14221708]
[1746994282073,3.99878659,2500.8,2500.2,0.03998957]
[1746994282273,3.99878659,2500.8,2500.3,0.7659]
[1746994282505,3.99878659,2500.8,2500.5,8.0]
[1746994283734,2.83658003,2501.4,2500.8,3.998786]
[1746994283932,3.99792108,2501.3,2500.9,8.0]
[1746994284091,3.99796632,2501.3,2500.9,0.66034244]
[1746994284299,4.87216827,2501.4,2500.8,0.8073]
[1746994284976,0.05,2501.4,2500.9,8.03998177]
[1746994285185,0.05,2501.4,2501.2,0.8073]
[1746994285376,0.05,2501.4,2501.3,39.41855646]
[1746994285584,0.05,2501.4,2501.3,49.53565]
[1746994285807,0.05,2501.4,2501.3,53.63787751]
[1746994286920,0.05,2502.4,2501.4,8.55]
[1746994287107,0.05,2502.4,2501.7,0.55]
[1746994287310,0.05,2502.4,2501.9,8.0]
[1746994287509,0.05,2502.4,2502.2,0.7936]
[1746994287821,0.05,2502.4,2502.3,16.753329]
[1746994288321,0.05,2502.4,2501.5,0.7936]
[1746994288533,4.04616952,2502.4,2501.5,8.7936]
[1746994288716,0.05,2502.4,2501.5,8.7936]
[1746994289022,0.05,2502.4,2501.6,0.55]
[1746994289192,0.05,2502.4,2501.7,0.93436]
[1746994289394,0.05,2502.4,2501.9,8.0]
[1746994289616,0.05,2502.4,2502.1,8.0]
[1746994290007,0.05,2502.4,2502.3,8.0]
[1746994290195,0.05,2502.4,2502.3,31.977543]
[1746994290396,0.05,2502.4,2502.3,34.4341853]
[1746994291325,0.05,2502.4,2502.3,34.1142823]
[1746994291692,0.05,2502.4,2502.3,31.9584233]
[1746994292098,0.05,2502.4,2502.3,11.1977543]
[1746994292300,0.05,2502.4,2502.3,19.894056]
[1746994292494,0.05,2502.4,2502.3,20.327659]
[1746994292897,3.99632338,2502.3,2501.7,3.80836]
[1746994293097,3.99632338,2502.3,2501.8,8.0]
[1746994293323,3.99632338,2502.3,2501.7,2.874]
[1746994293524,3.99632338,2502.3,2501.8,8.7599]
[1746994293718,0.05,2502.4,2501.8,8.7599]
[1746994294230,3.99656228,2502.2,2501.8,8.7599]
[1746994294435,4.04628504,2502.4,2501.9,1.16339]
[1746994294620,3.99632338,2502.3,2501.9,1.16339]
[1746994295001,3.99658419,2502.2,2501.9,1.16339]
[1746994295199,3.99639657,2502.3,2501.9,1.16339]
[1746994295740,0.05,2502.4,2501.9,1.16339]
[1746994295925,0.05,2502.4,2502.0,1.03229128]
[1746994296106,0.05,2502.4,2502.0,8.992329]
[1746994296438,0.05,2502.4,2502.2,8.0]
[1746994296633,0.05,2502.4,2502.3,27.068226]
[1746994296999,0.05,2502.4,2502.3,29.942226]
[1746994297333,0.05,2502.4,2502.3,32.9364486]
[1746994297834,0.05,2502.4,2502.3,30.5353666]
[1746994298004,0.05,2502.4,2502.3,30.0573666]
[1746994298416,0.05,2502.4,2502.3,29.3659606]
[1746994298617,0.05,2502.4,2502.3,28.8551706]
[1746994299040,0.05,2502.4,2502.3,27.6554906]
[1746994299550,0.05,2502.4,2502.3,8.0]
[1746994299753,4.04616368,2502.4,2502.3,8.0]
[1746994301124,4.0429741,2502.4,2502.3,8.0]
[1746994301545,0.04681042,2502.4,2502.3,8.0]
[1746994301845,0.04681042,2502.4,2502.3,22.018196]
[1746994302048,0.04681042,2502.4,2502.3,15.69031692]
[1746994302425,0.04681042,2502.4,2502.3,15.48124092]
[1746994303013,0.04681042,2502.4,2502.0,2.874]
[1746994303014,0.83221042,2502.4,2501.2,3.6329]
[1746994303231,0.83221042,2502.4,2501.3,2.91296917]
[1746994303435,3.9966682,2502.1,2501.4,8.0]
[1746994303618,3.9966682,2502.1,2501.5,0.03996865]
[1746994303931,3.9966682,2502.1,2501.5,1.13126551]
[1746994304451,3.9966682,2502.1,2501.5,1.09129686]
[1746994305634,3.99666913,2502.1,2501.5,1.09129686]
[1746994305944,3.99689122,2502.0,2501.5,1.09129686]
[1746994306633,0.83221042,2502.4,2502.0,3.996891]
[1746994306837,0.83221042,2502.4,2501.8,8.0]
[1746994306838,0.83221042,2502.4,2501.6,0.7505]
[1746994307566,3.99653749,2502.2,2501.6,0.7505]
[1746994308375,3.99648292,2502.3,2501.6,0.7505]
[1746994308376,3.99664364,2502.1,2501.6,0.7505]
[1746994308862,3.99648292,2502.3,2501.6,0.7505]
[1746994309065,0.04681042,2502.4,2501.7,0.03996666]
[1746994309369,0.04681042,2502.4,2502.1,0.55]
[1746994309576,0.04681042,2502.4,2502.3,8.0]
[1746994309882,0.04681042,2502.4,2502.3,30.723983]
[1746994311353,0.04681042,2502.4,2502.3,11.6813]
[1746994311551,0.04681042,2502.4,2502.3,51.87335]
[1746994311761,0.04681042,2502.4,2502.3,55.97557751]
[1746994312139,0.04681042,2502.4,2502.3,56.52557751]
[1746994314500,0.04681042,2502.4,2502.3,16.33352751]
[1746994314648,0.04681042,2502.4,2502.3,56.52557751]
[1746994315284,0.04681042,2502.4,2502.3,58.51451494]
[1746994315490,0.04681042,2502.4,2502.3,56.52557751]
[1746994316602,3.99475276,2503.3,2502.3,56.52557751]
[1746994316603,0.05,2503.4,2502.5,8.0]
[1746994316765,0.05,2503.4,2502.7,9.3104]
[1746994316990,0.05,2503.4,2502.9,8.0]
[1746994317192,0.05,2503.4,2503.1,8.0]
[1746994317398,0.05,2503.4,2503.3,8.0]
[1746994317599,0.05,2503.4,2503.3,19.117708]
[1746994317806,0.05,2503.4,2503.3,21.0294788]
[1746994318007,0.05,2503.4,2503.3,16.9895988]
[1746994319496,4.86226738,2503.4,2503.3,8.0]
[1746994319696,0.8677,2503.4,2503.3,8.0]
[1746994319990,4.86226738,2503.4,2503.3,8.0]
[1746994322105,0.8677,2503.4,2503.3,8.0]
[1746994322301,0.05,2503.4,2503.3,45.493018]
[1746994322521,0.05,2503.4,2503.3,33.82564751]
[1746994322905,0.05,2503.4,2503.3,29.79352251]
[1746994323344,0.05,2503.4,2503.3,35.52352251]